bitfinex/quotes_ETHUSD_20250426
["timestamp","ask_amount","ask_price","bid_price","bid_amount"]
[1745669459205,42.96613053,1792.2,1792.1,0.05]
[1745669459799,42.46193916,1792.2,1792.1,0.05]
[1745669466842,23.47204779,1792.2,1792.1,0.8821]
[1745669466999,22.57182664,1792.2,1792.1,0.8821]
[1745669467936,22.98095029,1792.2,1792.1,0.8821]
[1745669468135,23.48514166,1792.2,1792.1,0.8821]
[1745669471023,22.98095029,1792.2,1792.1,0.8821]
[1745669474038,22.57182664,1792.2,1792.1,0.8821]
[1745669474538,22.57182664,1792.2,1792.1,6.66214575]
[1745669474839,22.57182664,1792.2,1792.1,7.88639038]
[1745669475842,0.91570549,1792.7,1792.1,7.88639038]
[1745669475843,5.618,1792.5,1792.4,5.77904772]
[1745669476007,5.618,1792.6,1792.5,6.58432402]
[1745669481549,5.423,1793.1,1793.0,5.77724484]
[1745669481847,5.423,1793.1,1793.0,7.71072491]
[1745669485953,5.423,1793.1,1792.9,0.2]
[1745669486314,0.16364195,1793.0,1792.9,0.2]
[1745669486515,0.16364195,1793.0,1792.7,0.998]
[1745669486960,0.16364195,1793.0,1792.8,0.2]
[1745669487156,0.16364195,1793.0,1792.7,0.998]
[1745669487315,0.16364195,1793.0,1792.8,0.2]
[1745669488260,0.16364195,1793.0,1792.9,5.77755591]
[1745669488454,0.16364195,1793.0,1792.9,6.54305591]
[1745669488634,5.423,1793.1,1793.0,5.57724484]
[1745669488839,5.423,1793.1,1793.0,5.77724484]
[1745669489139,5.58664195,1793.1,1793.0,5.77724484]
[1745669489458,5.58664195,1793.1,1793.0,6.98927491]
[1745669494829,5.58664195,1793.1,1793.0,1.41203007]
[1745669495572,5.58664195,1793.1,1793.0,0.2]
[1745669496235,5.58664195,1793.1,1792.9,0.9655]
[1745669496433,5.58664195,1793.1,1793.0,0.2]
[1745669501074,5.58664195,1793.1,1793.0,5.77724484]
[1745669501893,5.58664195,1793.1,1793.0,6.58534484]
[1745669502054,5.58664195,1793.1,1793.0,7.80163421]
[1745669510904,0.16364195,1793.1,1793.0,7.80163421]
[1745669511112,5.259,1793.3,1793.2,5.57662279]
[1745669511408,5.41354573,1793.3,1793.2,5.77662279]
[1745669511582,5.41354573,1793.3,1793.2,6.91196677]
[1745669512504,5.41354573,1793.3,1793.2,1.33534398]
[1745669512707,5.41354573,1793.3,1793.2,0.2]
[1745669513401,5.41354573,1793.3,1793.2,5.77662279]
[1745669516377,5.41354573,1793.3,1793.2,6.58982279]
[1745669518977,5.41354573,1793.3,1793.2,0.2]
[1745669519914,13.05890551,1793.3,1792.7,0.2]
[1745669520213,3.36,1792.7,1792.1,0.05]
[1745669520416,0.50315978,1792.5,1792.1,0.05]
[1745669520790,0.50315978,1792.5,1792.1,5.82996553]
[1745669521012,0.15442881,1792.4,1792.1,6.41296208]
[1745669521309,0.3118463,1792.3,1792.1,6.41296208]
[1745669521616,5.40798999,1792.2,1792.1,6.41296208]
[1745669525008,5.40798999,1792.2,1792.1,7.24016208]
[1745669525516,0.14898999,1792.2,1792.1,7.74332186]
[1745669525721,1e-08,1792.2,1792.1,7.74332186]
[1745669525913,5.26,1792.6,1792.5,5.77880055]
[1745669526117,5.37264572,1792.6,1792.5,7.74178157]
[1745669526417,0.7745,1793.2,1792.9,5.57729489]
[1745669526707,5.26,1793.1,1793.0,0.2]
[1745669526896,5.26,1793.1,1793.0,5.77724484]
[1745669527894,5.26,1793.1,1793.0,0.2]
[1745669530342,5.26,1793.1,1793.0,5.77724484]
[1745669530513,5.26,1793.1,1793.0,6.35499834]
[1745669531319,5.26,1793.1,1793.0,0.2]
[1745669531615,5.26,1793.1,1793.0,5.77724484]
[1745669532778,0.1860123,1794.2,1793.2,5.77662279]
[1745669532779,0.7902,1793.7,1793.2,5.77662279]
[1745669532985,5.26,1793.7,1793.6,0.2]
[1745669533919,5.5705719,1793.7,1793.6,0.2]
[1745669534830,5.26,1793.7,1793.6,0.2]
[1745669535490,5.26,1793.7,1793.6,5.77537912]
[1745669535692,5.26,1793.7,1793.6,6.91048336]
[1745669536321,5.26,1793.7,1793.6,1.33510424]
[1745669536685,5.26,1793.7,1793.6,0.2]
[1745669538217,5.26,1793.7,1793.6,5.77537912]
[1745669540310,5.26,1793.7,1793.6,0.2]
[1745669541211,5.26,1793.7,1793.6,5.77537912]
[1745669541412,5.26,1793.7,1793.6,0.2]
[1745669542141,5.26,1793.7,1793.6,5.77537912]
[1745669543748,5.26,1793.7,1793.6,6.91048168]
[1745669543913,5.26,1793.7,1793.6,7.68928168]
[1745669544749,5.26,1793.7,1793.6,6.91048168]
[1745669546244,5.36497629,1793.7,1793.6,6.91048168]
[1745669546444,5.26,1793.7,1793.6,7.69788168]
[1745669548411,21.977,1794.1,1794.0,0.2]
[1745669549052,22.48015978,1794.1,1794.0,0.2]
[1745669550154,21.977,1794.1,1794.0,0.2]
[1745669552451,5.234,1794.1,1794.0,0.2]
[1745669554524,0.50315978,1794.3,1794.0,0.2]
[1745669554871,6.207,1796.3,1795.8,0.2]
[1745669555018,0.50315978,1796.1,1795.6,0.2]
[1745669555219,0.55315978,1795.9,1795.5,0.2]
[1745669555479,0.50315978,1795.7,1795.4,0.2]
[1745669555760,0.50315978,1795.7,1795.4,0.16639015]
[1745669556167,0.756,1795.8,1795.4,0.16639015]
[1745669556364,0.05,1795.9,1795.8,5.73493898]
[1745669556939,0.05,1795.9,1795.6,0.8266]
[1745669556940,0.05,1795.9,1795.7,0.16639015]
[1745669557138,0.05,1795.9,1795.8,0.16639015]
[1745669557346,0.05,1795.9,1795.8,5.73493898]
[1745669559422,0.05,1795.9,1795.8,6.04403752]
[1745669560127,0.05,1795.9,1795.8,5.73493898]
[1745669562355,0.17719034,1795.9,1795.8,5.73493898]
[1745669563540,0.98889034,1795.9,1795.7,0.16639015]
[1745669563952,0.98889034,1795.9,1795.8,0.16639015]
[1745669564163,0.98889034,1795.9,1795.7,0.16639015]
[1745669564535,0.98889034,1795.9,1795.8,0.16639015]
[1745669564735,0.98889034,1795.9,1795.7,0.16639015]
[1745669565270,0.98889034,1795.9,1795.2,6.33960615]
[1745669565271,17.71089034,1795.9,1795.6,0.16639015]
[1745669565443,3.0,1795.8,1795.6,0.16639015]
[1745669565643,3.0,1795.8,1795.5,0.16639015]
[1745669565844,0.12660703,1795.7,1795.5,0.16639015]
[1745669566080,0.12660703,1795.7,1795.4,0.16639015]
[1745669566239,0.5444739,1795.7,1795.4,0.16639015]
[1745669566440,0.12660703,1795.7,1795.5,0.16639015]
[1745669566931,0.12660703,1795.7,1795.6,0.16639015]
[1745669568278,0.12660703,1795.7,1795.5,0.16639015]
[1745669568460,0.12660703,1795.7,1795.6,0.16639015]
[1745669569176,0.54031046,1795.7,1795.6,0.16639015]
[1745669569338,0.12660703,1795.7,1795.6,0.16639015]
[1745669571875,0.12660703,1795.7,1795.6,5.73555922]
[1745669572034,0.12660703,1795.7,1795.6,6.38602514]
[1745669573777,0.12660703,1795.7,1795.6,6.69477104]
[1745669574484,0.4076005,1796.4,1795.9,0.7515]
[1745669574787,0.4076005,1796.4,1796.3,0.91789015]
[1745669574941,0.4076005,1796.4,1796.3,6.48488898]
[1745669575140,5.445,1796.6,1796.5,0.16639015]
[1745669578999,5.445,1796.6,1796.4,0.16639015]
[1745669579163,0.8003,1796.5,1796.3,0.16639015]
[1745669579581,0.8003,1796.5,1796.2,0.16639015]
[1745669579783,0.8003,1796.5,1796.3,0.16639015]
[1745669580204,0.403169,1796.8,1796.5,0.16639015]
[1745669580358,5.848169,1796.8,1796.7,0.16639015]
[1745669580684,8.848169,1796.8,1796.4,0.16639015]
[1745669580891,0.8003,1796.6,1796.4,0.16639015]
[1745669581062,0.8003,1796.6,1796.3,0.16639015]
[1745669581281,3.0,1796.5,1796.0,0.16639015]
[1745669581477,0.8003,1796.4,1796.0,0.16639015]
[1745669581779,0.8003,1796.4,1796.2,0.16639015]
[1745669581780,5.444,1796.3,1796.2,0.16639015]
[1745669582068,5.444,1796.3,1796.2,5.73369891]
[1745669582275,5.444,1796.3,1796.2,6.86380924]
[1745669582789,5.444,1796.3,1796.2,0.16639015]
[1745669583378,5.444,1796.3,1796.1,0.16639015]
[1745669583581,5.444,1796.3,1796.2,0.16639015]
[1745669583774,9.2334,1796.3,1796.1,0.16639015]
[1745669583979,9.2334,1796.3,1796.2,0.16639015]
[1745669584163,9.2334,1796.3,1796.0,0.16639015]
[1745669584898,8.89,1796.2,1795.9,0.16639015]
[1745669585084,0.7894,1796.1,1795.7,0.16639015]
[1745669585385,0.7894,1795.9,1795.8,0.16639015]
[1745669586159,0.7894,1795.9,1795.6,0.16639015]
[1745669586357,0.7894,1795.6,1795.5,0.16639015]
[1745669586691,3.0,1795.5,1795.1,0.16639015]
[1745669586886,3.0,1795.5,1795.2,0.16639015]
[1745669587090,3.42469229,1795.5,1795.1,0.16639015]
[1745669587584,3.42469229,1795.5,1795.0,0.16639015]
[1745669587787,3.42469229,1795.5,1795.1,0.16639015]
[1745669588189,3.42469229,1795.5,1794.7,5.57195587]
[1745669588190,3.42469229,1795.5,1795.2,0.16639015]
[1745669588763,3.42469229,1795.5,1795.1,0.16639015]
[1745669589126,3.42469229,1795.5,1795.2,0.16639015]
[1745669589289,3.42469229,1795.5,1795.1,0.16639015]
[1745669589453,3.0,1795.5,1795.0,0.16639015]
[1745669589659,3.0,1795.5,1795.2,0.16639015]
[1745669589958,0.7894,1795.4,1795.0,0.16639015]
[1745669590158,3.0,1795.2,1795.1,0.16639015]
[1745669591095,0.7894,1795.0,1794.6,0.16639015]
[1745669591303,5.47728459,1794.9,1794.6,0.16639015]
[1745669591489,3.0,1794.7,1794.6,0.16639015]
[1745669592060,5.563,1794.8,1794.6,0.16639015]
[1745669592260,5.563,1794.8,1794.7,0.16639015]
[1745669592860,3.7894,1795.0,1794.9,0.16639015]
[1745669593058,9.3544,1795.0,1794.9,0.16639015]
[1745669593461,9.3544,1795.0,1794.4,5.57276565]
[1745669593462,9.3544,1795.0,1794.7,0.16639015]
[1745669593671,2.47728459,1794.9,1794.7,0.16639015]
[1745669594300,2.47728459,1794.9,1794.6,0.16639015]
[1745669594468,2.47728459,1794.9,1794.5,0.16639015]
[1745669595285,2.47728459,1794.9,1794.7,0.16639015]
[1745669595588,9.3544,1795.0,1794.7,0.16639015]
[1745669596402,9.3544,1795.0,1794.8,0.16639015]
[1745669596572,8.565,1795.0,1794.9,0.16639015]
[1745669598298,5.565,1795.0,1794.9,0.16639015]
[1745669600997,5.565,1795.0,1794.8,0.16639015]
[1745669601371,5.565,1795.0,1794.9,0.16639015]
[1745669601601,5.565,1795.0,1794.8,0.16639015]
[1745669601797,3.0,1794.7,1794.5,0.16639015]
[1745669602002,3.0,1794.7,1794.6,0.16639015]
[1745669603004,3.0,1794.7,1794.5,0.16639015]
[1745669603171,19.726,1794.7,1794.5,0.16639015]
[1745669603902,19.726,1794.7,1794.6,0.16639015]
[1745669607090,19.726,1794.7,1794.5,0.16639015]
[1745669607297,19.726,1794.7,1794.4,0.16639015]
[1745669608786,19.726,1794.7,1794.5,0.16639015]
[1745669609207,19.726,1794.7,1794.4,0.16639015]
[1745669609404,19.726,1794.7,1794.6,0.16639015]
[1745669609808,19.726,1794.7,1794.4,0.16639015]
[1745669610009,19.726,1794.7,1794.5,0.16639015]
[1745669610309,19.726,1794.7,1794.4,0.16639015]
[1745669611578,19.726,1794.7,1794.5,0.16639015]
[1745669613581,19.726,1794.7,1794.6,0.16639015]
[1745669613974,19.726,1794.7,1794.5,0.16639015]
[1745669614177,23.071,1794.7,1794.5,0.16639015]
[1745669614792,23.071,1794.7,1794.6,0.16639015]
[1745669615925,16.726,1794.7,1794.6,0.16639015]
[1745669617506,16.726,1794.7,1794.6,0.68696964]
[1745669618105,16.726,1794.7,1794.6,0.16639015]
[1745669619509,16.726,1794.7,1794.3,0.16639015]
[1745669619510,22.20328459,1794.7,1794.3,0.16639015]
[1745669619707,22.20328459,1794.7,1794.5,0.16639015]
[1745669620143,22.20328459,1794.7,1794.4,0.16639015]
[1745669620547,22.20328459,1794.7,1794.5,0.16639015]
[1745669620851,25.54828459,1794.7,1794.5,0.16639015]
[1745669621024,25.54828459,1794.7,1794.3,0.16639015]
[1745669621343,23.071,1794.7,1794.5,0.16639015]
[1745669622201,23.071,1794.7,1794.4,0.16639015]
[1745669622202,2.47728459,1794.6,1794.4,0.16639015]
[1745669622437,8.437,1794.5,1794.4,0.16639015]
[1745669622627,3.0,1794.4,1794.3,0.16639015]
[1745669622827,7.1043,1794.4,1794.3,0.16639015]
[1745669623028,9.58158459,1794.4,1794.3,0.16639015]
[1745669623340,6.345,1794.4,1794.3,0.16639015]
[1745669624841,8.82228459,1794.4,1794.3,0.16639015]
[1745669627641,6.84782822,1794.4,1794.3,0.16639015]
[1745669627932,6.84782822,1794.4,1794.2,0.16639015]
[1745669628139,6.84782822,1794.4,1794.3,0.16639015]
[1745669628847,6.84782822,1794.4,1794.2,0.16639015]
[1745669629058,6.84782822,1794.4,1794.3,0.16639015]
[1745669630245,6.84782822,1794.4,1794.1,0.21639015]
[1745669630427,6.84782822,1794.4,1794.3,0.16639015]
[1745669630939,6.84782822,1794.4,1794.2,0.16639015]
[1745669631242,6.84782822,1794.4,1794.3,0.16639015]
[1745669632724,6.84782822,1794.4,1794.2,0.16639015]
[1745669633031,6.84782822,1794.4,1794.3,0.16639015]
[1745669634653,6.84782822,1794.4,1794.2,0.16639015]
[1745669634836,6.84782822,1794.4,1794.3,0.16639015]
[1745669635242,13.54442822,1794.4,1794.1,0.05]
[1745669635407,6.84782822,1794.2,1794.1,0.05]
[1745669635736,3.0,1794.2,1794.1,0.05]
[1745669636131,3.0,1794.2,1794.1,0.21639015]
[1745669636450,3.0,1794.2,1794.1,0.05]
[1745669636610,3.0,1794.2,1794.1,0.21639015]
[1745669637444,23.08,1794.2,1794.1,0.05]
[1745669637615,3.345,1794.0,1793.6,0.16639015]
[1745669637815,0.50282822,1793.7,1793.6,0.16639015]
[1745669638519,1.32942822,1793.7,1793.5,0.16639015]
[1745669638917,1.32942822,1793.7,1793.6,0.16639015]
[1745669639114,1.32942822,1793.7,1793.5,0.16639015]
[1745669639346,1.32942822,1793.7,1793.6,0.16639015]
[1745669639555,0.50282822,1793.7,1793.6,0.16639015]
[1745669640049,3.50282822,1793.8,1793.7,0.16639015]
[1745669641157,3.9231101,1793.8,1793.7,0.16639015]
[1745669642122,0.50282822,1794.1,1793.7,0.16639015]
[1745669642323,3.0,1793.9,1793.8,0.16639015]
[1745669648956,3.8174,1793.9,1793.7,0.16639015]
[1745669649125,3.8174,1793.9,1793.8,0.16639015]
[1745669649325,4.32022822,1793.9,1793.8,0.16639015]
[1745669649951,4.32022822,1793.9,1793.7,0.16639015]
[1745669650454,4.32022822,1793.9,1793.8,0.16639015]
[1745669652050,4.32022822,1793.9,1793.7,0.16639015]
[1745669652355,4.32022822,1793.9,1793.8,0.16639015]
[1745669652551,3.50282822,1793.9,1793.8,0.16639015]
[1745669655267,6.84782822,1793.9,1793.6,0.16639015]
[1745669655441,0.50282822,1793.7,1793.6,0.16639015]
[1745669656151,3.50282822,1793.7,1793.6,0.16639015]
[1745669656351,3.50282822,1793.7,1793.5,0.16639015]
[1745669656552,8.323,1793.6,1793.5,0.16639015]
[1745669658055,5.323,1793.6,1793.5,0.16639015]
[1745669661365,5.323,1793.6,1793.5,0.94309015]
[1745669661531,5.323,1793.6,1793.5,6.51878014]
[1745669662668,5.323,1793.6,1793.5,0.94309015]
[1745669663034,5.323,1793.6,1793.5,6.51878014]
[1745669663666,5.323,1793.6,1793.5,0.94309015]
[1745669672342,5.323,1793.6,1793.5,6.51878014]
[1745669674790,5.323,1793.6,1793.5,0.94309015]
[1745669677247,5.323,1793.6,1793.5,0.16639015]
[1745669688309,5.82582822,1793.6,1793.5,0.16639015]
[1745669688516,6.58922822,1793.6,1793.5,0.16639015]
[1745669689212,9.58922822,1793.6,1793.5,0.16639015]
[1745669690214,8.323,1793.6,1793.5,0.16639015]
[1745669691640,5.323,1793.6,1793.5,0.16639015]
[1745669697419,9.09,1793.9,1793.8,0.16639015]
[1745669697623,14.236,1793.9,1793.8,0.16639015]
[1745669700948,8.146,1793.9,1793.8,0.16639015]
[1745669701355,8.64882822,1793.9,1793.8,0.16639015]
[1745669701530,0.7551,1793.8,1793.7,0.16639015]
[1745669702739,8.146,1793.9,1793.8,0.16639015]
[1745669703338,16.738,1794.0,1793.8,0.98169015]
[1745669703548,16.738,1794.0,1793.9,5.74083688]
[1745669703731,21.883,1794.0,1793.9,6.95392248]
[1745669709342,21.883,1794.0,1793.9,0.16639015]
[1745669711741,21.883,1794.0,1793.9,5.74083688]
[1745669711910,21.883,1794.0,1793.9,6.51583688]
[1745669712818,5.145,1794.0,1793.9,6.51583688]
[1745669715935,16.736,1794.7,1794.5,0.16639015]
[1745669716141,5.129,1794.6,1794.5,0.16639015]
[1745669719447,1.31292822,1795.3,1795.0,0.16639015]
[1745669719649,3.0,1795.1,1795.0,0.16639015]
[1745669719826,3.50282822,1795.1,1795.0,0.16639015]
[1745669720032,4.72615561,1795.1,1794.8,0.16639015]
[1745669720345,1.31292822,1794.9,1794.8,0.16639015]
[1745669720929,6.09,1795.0,1794.8,0.16639015]
[1745669721356,0.50282822,1794.9,1794.8,0.16639015]
[1745669724570,10.81615561,1795.1,1794.9,0.16639015]
[1745669727372,10.81615561,1795.1,1794.8,0.16639015]
[1745669727560,10.81615561,1795.1,1794.9,0.16639015]
[1745669728739,6.09,1795.1,1795.0,0.16639015]
[1745669730199,8.63082822,1795.2,1795.1,0.16639015]
[1745669732745,8.128,1795.2,1795.1,0.16639015]
[1745669733082,5.128,1795.2,1795.1,0.16639015]
[1745669733459,3.0,1795.4,1795.3,0.16639015]
[1745669733659,8.127,1795.4,1795.3,0.16639015]
[1745669739464,8.127,1795.4,1795.1,0.16639015]
[1745669739784,0.7596,1795.2,1794.8,0.16639015]
[1745669739957,0.50282822,1794.9,1794.8,0.16639015]
[1745669740287,5.62682822,1794.9,1794.8,0.16639015]
[1745669743384,8.62682822,1794.9,1794.7,0.16639015]
[1745669743585,8.62682822,1794.9,1794.8,0.16639015]
[1745669743774,3.0,1794.8,1794.7,0.16639015]
[1745669743967,3.0,1795.1,1795.0,0.16639015]
[1745669744165,8.125,1795.1,1795.0,0.16639015]
[1745669744702,8.125,1795.1,1794.9,0.16639015]
[1745669744851,0.50282822,1794.9,1794.7,0.16639015]
[1745669745185,1.27882822,1794.9,1794.8,0.16639015]
[1745669745384,4.62382822,1794.9,1794.7,0.16639015]
[1745669745592,4.62382822,1794.9,1794.6,0.16639015]
[1745669745753,0.50282822,1794.7,1794.5,0.16639015]
[1745669746094,5.125,1794.6,1794.5,0.16639015]
[1745669746291,0.91296159,1795.1,1794.9,0.16639015]
[1745669746487,8.125,1795.0,1794.9,0.16639015]
[1745669754475,11.47,1795.0,1794.9,0.16639015]
[1745669755575,28.198,1795.0,1794.9,0.16639015]
[1745669757681,28.198,1795.0,1794.8,0.16639015]
[1745669757882,4.28372822,1794.9,1794.8,0.16639015]
[1745669758818,3.50282822,1794.9,1794.8,0.16639015]
[1745669760593,6.84782822,1794.9,1794.7,0.16639015]
[1745669760788,0.7809,1794.8,1794.7,0.16639015]
[1745669760991,6.345,1794.7,1794.5,0.16639015]
[1745669761307,3.7809,1794.5,1794.2,0.16639015]
[1745669761480,3.84782822,1794.4,1794.2,0.16639015]
[1745669761682,3.0,1794.3,1794.1,0.16639015]
[1745669762028,5.125,1794.2,1794.1,0.16639015]
[1745669762313,6.40872822,1794.2,1794.0,0.16639015]
[1745669762482,3.0,1794.1,1794.0,0.16639015]
[1745669765328,3.41207366,1794.1,1794.0,0.16639015]
[1745669766836,20.14407366,1794.1,1794.0,0.16639015]
[1745669767551,19.732,1794.1,1794.0,0.16639015]
[1745669767714,21.858,1794.1,1794.0,0.16639015]
[1745669767903,21.858,1794.1,1794.0,7.14610898]
[1745669768935,21.858,1794.1,1794.0,7.09610898]
[1745669769137,5.126,1794.1,1794.0,7.09610898]
[1745669769933,5.126,1794.1,1794.0,7.5989372]
[1745669770810,0.237246,1795.7,1795.6,0.11639015]
[1745669771056,4.0,1795.7,1795.6,0.11639015]
[1745669771363,4.0,1795.7,1795.6,5.68555922]
[1745669771737,5.174,1795.9,1795.6,5.68555922]
[1745669771738,5.174,1795.9,1795.8,5.68493898]
[1745669772236,0.05,1795.9,1795.8,0.11639015]
[1745669772410,5.173,1795.9,1795.8,0.11639015]
[1745669772609,0.05,1795.9,1795.8,0.11639015]
[1745669772806,5.173,1795.9,1795.8,5.68493898]
[1745669773272,5.173,1795.9,1795.8,6.72788934]
[1745669773752,5.173,1795.9,1795.8,5.68493898]
[1745669777214,5.173,1795.9,1795.8,0.11639015]
[1745669778555,5.173,1795.9,1795.8,5.68493898]
[1745669778755,5.173,1795.9,1795.8,0.11639015]
[1745669779768,5.173,1795.9,1795.3,6.07290246]
[1745669779769,8.67582822,1795.9,1795.7,0.11639015]
[1745669780144,3.0,1795.8,1795.5,0.11639015]
[1745669780450,1.26132822,1795.6,1795.4,0.11639015]
[1745669780774,5.121,1795.5,1795.4,0.11639015]
[1745669781479,5.121,1795.5,1795.4,6.25482836]
[1745669781641,5.121,1795.5,1795.4,7.05152836]
[1745669782942,5.121,1795.5,1795.4,1.4817389]
[1745669783138,5.121,1795.5,1795.4,0.91309015]
[1745669783875,5.121,1795.5,1795.4,0.11639015]
[1745669784873,5.121,1795.5,1795.4,5.68617961]
[1745669785362,5.121,1795.5,1795.4,0.11639015]
[1745669786379,5.121,1795.5,1795.4,5.68617961]
[1745669786674,5.121,1795.5,1795.4,0.11639015]
[1745669787551,0.05,1795.9,1795.8,0.11639015]
[1745669787757,5.171,1795.9,1795.8,0.11639015]
[1745669789750,5.171,1795.9,1795.4,0.11639015]
[1745669789751,12.289,1795.9,1795.4,0.11639015]
[1745669789958,0.50282822,1795.6,1795.4,0.11639015]
[1745669790254,5.121,1795.5,1795.4,0.11639015]
[1745669791396,5.121,1795.5,1795.4,6.47087961]
[1745669791592,5.121,1795.5,1795.4,7.67496414]
[1745669801792,5.121,1795.5,1795.4,2.10517468]
[1745669802687,5.121,1795.5,1795.4,0.11639015]
[1745669802877,6.37912822,1795.5,1795.4,0.11639015]
[1745669804288,5.8763,1795.5,1795.4,0.11639015]
[1745669804878,5.121,1795.5,1795.4,0.11639015]
[1745669814051,5.121,1795.5,1795.4,0.91709015]
[1745669814225,5.121,1795.5,1795.4,7.13556812]
[1745669814859,5.121,1795.5,1795.4,1.56577866]
[1745669815175,5.121,1795.5,1795.4,7.13556812]
[1745669815874,5.121,1795.5,1795.4,1.56577866]
[1745669816074,5.121,1795.5,1795.4,0.91709015]
[1745669816673,5.121,1795.5,1795.4,0.11639015]
[1745669818184,5.121,1795.5,1795.4,5.68617961]
[1745669818890,5.121,1795.5,1795.4,0.11639015]
[1745669824512,25.81,1795.8,1795.7,0.11639015]
[1745669824807,27.928,1795.8,1795.7,0.11639015]
[1745669828204,27.928,1795.8,1795.7,7.01758198]
[1745669828597,27.928,1795.8,1795.7,1.44872304]
[1745669829814,21.838,1795.8,1795.7,1.44872304]
[1745669830430,21.838,1795.8,1795.7,7.01758198]
[1745669834023,5.118,1795.8,1795.7,7.01758198]
[1745669834593,5.118,1795.8,1795.7,0.11639015]
[1745669835728,5.9343,1795.8,1795.7,0.11639015]
[1745669840517,5.118,1795.8,1795.7,0.11639015]
[1745669843135,5.62082822,1795.8,1795.7,0.11639015]
[1745669843306,9.38682822,1795.8,1795.7,0.11639015]
[1745669843909,9.38682822,1795.8,1795.6,0.11639015]
[1745669844122,9.38682822,1795.8,1795.7,0.11639015]
[1745669844335,12.73182822,1795.8,1795.6,0.11639015]
[1745669844850,18.82182822,1795.8,1795.6,0.11639015]
[1745669846134,18.82182822,1795.8,1795.7,0.11639015]
[1745669850346,12.73182822,1795.8,1795.7,0.11639015]
[1745669852645,0.7812,1795.6,1795.4,3.696464]
[1745669852942,0.50282822,1795.5,1795.4,3.81285415]
[1745669854146,0.50282822,1795.5,1795.4,3.696464]
[1745669854553,0.50282822,1795.5,1795.4,3.81285415]
[1745669855052,6.84782822,1795.5,1795.4,3.696464]
[1745669855355,7.63832822,1795.5,1795.4,3.696464]
[1745669858232,8.04701931,1795.5,1795.4,3.696464]
[1745669862476,24.77001931,1795.5,1795.4,3.696464]
[1745669873796,25.32001931,1795.5,1795.4,3.696464]
[1745669875392,31.19001931,1795.5,1795.4,3.696464]
[1745669876762,37.28001931,1795.5,1795.4,3.696464]
[1745669877079,42.39201931,1795.5,1795.4,3.696464]
[1745669892538,36.52201931,1795.5,1795.4,3.696464]
[1745669892739,35.73151931,1795.5,1795.4,3.696464]
[1745669893941,35.18151931,1795.5,1795.4,3.696464]
[1745669894337,16.723,1795.5,1795.4,4.9201504]
[1745669894668,21.831,1795.5,1795.4,10.60633001]
[1745669895309,21.831,1795.5,1795.4,5.03654055]
[1745669896949,0.05,1795.9,1795.8,0.7764]
[1745669897114,5.157,1795.9,1795.8,0.89279015]
[1745669902458,5.157,1795.9,1795.7,0.89279015]
[1745669902459,8.157,1795.9,1795.7,0.89279015]
[1745669902656,8.157,1795.9,1795.4,3.696464]
[1745669902657,6.347,1795.7,1795.4,3.696464]
[1745669902951,3.897,1795.4,1795.0,0.11639015]
[1745669903154,3.897,1795.4,1794.9,0.11639015]
[1745669903155,0.50282822,1795.1,1794.9,0.11639015]
[1745669903648,3.50282822,1795.1,1794.9,0.11639015]
[1745669904057,3.50282822,1795.1,1795.0,0.11639015]
[1745669904232,3.50282822,1795.1,1794.9,0.11639015]
[1745669904987,3.91619988,1795.1,1794.9,0.11639015]
[1745669907690,3.50282822,1795.2,1794.9,0.11639015]
[1745669908501,3.92307313,1795.2,1795.0,0.8063]
[1745669909684,3.92307313,1795.2,1795.0,0.92269015]
[1745669910207,3.92307313,1795.2,1795.0,0.8063]
[1745669910374,3.92307313,1795.2,1795.0,0.92269015]
[1745669912174,3.92307313,1795.2,1795.0,0.11639015]
[1745669913682,0.55,1795.1,1795.0,0.11639015]
[1745669913887,1.3408,1795.1,1794.8,0.11639015]
[1745669914073,0.50282822,1794.9,1794.8,0.11639015]
[1745669914277,5.61082822,1794.9,1794.8,0.11639015]
[1745669917913,5.61082822,1794.9,1794.7,0.11639015]
[1745669918113,8.61082822,1794.9,1794.8,0.11639015]
[1745669919202,25.33782822,1794.9,1794.8,0.11639015]
[1745669921812,25.33782822,1794.9,1794.6,0.8307]
[1745669921813,3.0,1794.8,1794.6,0.11639015]
[1745669922017,0.50282822,1794.7,1794.6,0.11639015]
[1745669923702,9.09,1794.8,1794.7,0.11639015]
[1745669925333,9.09,1794.8,1794.7,0.92429015]
[1745669929516,3.0,1794.8,1794.7,0.92429015]
[1745669930314,3.0,1794.8,1794.6,0.11639015]
[1745669930687,3.0,1794.8,1794.7,0.11639015]
[1745669931028,3.0,1794.8,1794.6,0.11639015]
[1745669931817,3.0,1794.8,1794.5,0.8079]
[1745669931818,0.50282822,1794.7,1794.5,0.11639015]
[1745669932021,6.59282822,1794.7,1794.4,0.11639015]
[1745669932223,0.50282822,1794.5,1794.4,0.11639015]
[1745669932422,5.60682822,1794.5,1794.4,0.11639015]
[1745669934489,6.02958614,1794.5,1794.4,0.11639015]
[1745669938438,5.52675792,1794.5,1794.4,0.11639015]
[1745669938641,8.52675792,1794.5,1794.4,0.11639015]
[1745669939849,8.52675792,1794.5,1794.4,0.88529015]
[1745669941254,8.52675792,1794.5,1794.4,0.11639015]
[1745669942459,9.02958614,1794.5,1794.4,0.11639015]
[1745669942657,9.02958614,1794.5,1794.2,0.7689]
[1745669942658,3.0,1794.4,1794.2,0.11639015]
[1745669942819,0.50282822,1794.3,1794.1,0.11639015]
[1745669944232,0.7632,1794.2,1794.1,0.11639015]
[1745669945154,3.7632,1794.2,1794.1,0.11639015]
[1745669945661,3.0,1794.2,1794.1,0.11639015]
[1745669946458,6.09,1794.4,1794.3,0.11639015]
[1745669947126,5.52675792,1794.5,1794.3,0.11639015]
[1745669947451,22.26075792,1794.5,1794.3,0.11639015]
[1745669948262,25.26075792,1794.5,1794.4,0.11639015]
[1745669948824,25.26075792,1794.5,1794.3,0.11639015]
[1745669949021,25.26075792,1794.5,1794.4,0.11639015]
[1745669949341,25.26075792,1794.5,1794.3,0.11639015]
[1745669949549,0.50282822,1794.4,1794.3,0.11639015]
[1745669949727,3.50282822,1794.4,1794.2,0.11639015]
[1745669949943,0.55,1794.3,1794.2,0.11639015]